[Event "*** Titled Tuesday Blitz"]
[Site "Chess.com"]
[Date "2020.04.07"]
[Round "2"]
[White "plumalka"]
[Black "Sn00pPawn"]
[Result "1-0"]
[WhiteElo "2391"]
[BlackElo "1846"]
[TimeControl "180+1"]
[EndTime "13:17:19 PDT"]
[Termination "plumalka won by resignation"]

1. e4 {[%clk 0:03:00.9]} 1... c5 {[%clk 0:02:59.6]} 2. Nf3 {[%clk 0:02:59.4]}
2... d6 {[%clk 0:02:59.5]} 3. d4 {[%clk 0:02:59.7]} 3... cxd4 {[%clk 0:03:00.4]}
4. Nxd4 {[%clk 0:03:00.6]} 4... Nf6 {[%clk 0:03:00.5]} 5. Nc3 {[%clk 0:03:00.9]}
5... a6 {[%clk 0:03:00.9]} 6. Nb3 {[%clk 0:03:01.2]} 6... e5 {[%clk 0:03:00.3]}
7. Bg5 {[%clk 0:02:59.7]} 7... Be6 {[%clk 0:02:52.7]} 8. Qd2 {[%clk 0:02:59.1]}
8... Nbd7 {[%clk 0:02:49.7]} 9. O-O-O {[%clk 0:02:57.7]} 9... Be7 {[%clk
0:02:49.9]} 10. f4 {[%clk 0:02:57.5]} 10... exf4 {[%clk 0:02:46.3]} 11. Bd3
{[%clk 0:02:56.3]} 11... Ne5 {[%clk 0:02:45.7]} 12. Bxf4 {[%clk 0:02:55.6]}
12... O-O {[%clk 0:02:38.9]} 13. Nd4 {[%clk 0:02:54.7]} 13... Rc8 {[%clk
0:02:32.1]} 14. Kb1 {[%clk 0:02:52.5]} 14... Nc4 {[%clk 0:02:27]} 15. Bxc4
{[%clk 0:02:51]} 15... Bxc4 {[%clk 0:02:23.3]} 16. Nf5 {[%clk 0:02:49.2]} 16...
b5 {[%clk 0:01:42.5]} 17. Nxe7+ {[%clk 0:02:47.6]} 17... Qxe7 {[%clk 0:01:42]}
18. Bxd6 {[%clk 0:02:47.7]} 18... Qb7 {[%clk 0:01:36.4]} 19. Bxf8 {[%clk
0:02:47.2]} 19... Rxf8 {[%clk 0:01:37.3]} 20. e5 {[%clk 0:02:45.8]} 20... Ng4
{[%clk 0:00:57.1]} 21. Rhe1 {[%clk 0:02:39.3]} 21... b4 {[%clk 0:00:55]} 22. Nd5
{[%clk 0:02:35.4]} 22... a5 {[%clk 0:00:23.7]} 23. Qd4 {[%clk 0:02:26.2]} 23...
Bxd5 {[%clk 0:00:21.6]} 24. Qxd5 {[%clk 0:02:27.1]} 24... Qc7 {[%clk 0:00:14.9]}
25. Qd7 {[%clk 0:02:14.1]} 25... Qc8 {[%clk 0:00:10.5]} 26. Qxc8 {[%clk
0:02:12.7]} 26... Rxc8 {[%clk 0:00:10.6]} 27. h3 {[%clk 0:02:10.5]} 27... Nh6
{[%clk 0:00:10.6]} 28. e6 {[%clk 0:02:09.9]} 28... fxe6 {[%clk 0:00:10.4]} 29.
Rxe6 {[%clk 0:02:10.8]} 29... Nf7 {[%clk 0:00:10.7]} 30. Rd7 {[%clk 0:02:08]}
30... Ng5 {[%clk 0:00:09.4]} 31. Ree7 {[%clk 0:02:07.8]} 1-0

[Event "*** Titled Tuesday Blitz"]
[Site "Chess.com"]
[Date "2020.04.07"]
[Round "2"]
[White "TheCavemanChesss"]
[Black "OparinGrigoriy"]
[Result "0-1"]
[WhiteElo "2603"]
[BlackElo "2982"]
[TimeControl "180+1"]
[EndTime "13:17:20 PDT"]
[Termination "OparinGrigoriy won by resignation"]

1. e4 {[%clk 0:03:00.9]} 1... e5 {[%clk 0:02:58.3]} 2. Nf3 {[%clk 0:03:00.8]}
2... Nc6 {[%clk 0:02:58.9]} 3. Bb5 {[%clk 0:03:00.2]} 3... a6 {[%clk 0:02:58.4]}
4. Ba4 {[%clk 0:03:00.8]} 4... Nf6 {[%clk 0:02:57]} 5. O-O {[%clk 0:03:01.4]}
5... Nxe4 {[%clk 0:02:57.6]} 6. d4 {[%clk 0:02:59]} 6... b5 {[%clk 0:02:57.6]}
7. Bb3 {[%clk 0:02:59.4]} 7... d5 {[%clk 0:02:58.2]} 8. dxe5 {[%clk 0:03:00]}
8... Be6 {[%clk 0:02:58.3]} 9. Nbd2 {[%clk 0:03:00.5]} 9... Be7 {[%clk
0:02:57.3]} 10. Qe2 {[%clk 0:02:58.7]} 10... Nc5 {[%clk 0:02:54.8]} 11. Rd1
{[%clk 0:02:54.6]} 11... O-O {[%clk 0:02:54]} 12. Nf1 {[%clk 0:02:34.3]} 12...
Qd7 {[%clk 0:02:39.9]} 13. c3 {[%clk 0:02:17.5]} 13... Nxb3 {[%clk 0:02:39.4]}
14. axb3 {[%clk 0:02:17.3]} 14... Rfd8 {[%clk 0:02:26.5]} 15. Ne3 {[%clk
0:02:06.4]} 15... d4 {[%clk 0:02:17.6]} 16. Nxd4 {[%clk 0:02:01.3]} 16... Nxd4
{[%clk 0:02:16.2]} 17. Rxd4 {[%clk 0:01:58.7]} 17... Qc6 {[%clk 0:02:16.7]} 18.
Rxd8+ {[%clk 0:01:43.6]} 18... Rxd8 {[%clk 0:02:17.6]} 19. b4 {[%clk 0:01:44.5]}
19... Bg5 {[%clk 0:02:11.2]} 20. Nc2 {[%clk 0:01:32]} 20... Bc4 {[%clk
0:01:58.5]} 21. Qe1 {[%clk 0:01:03.6]} 21... Be7 {[%clk 0:01:57.5]} 22. Nd4
{[%clk 0:00:59.5]} 22... Qg6 {[%clk 0:01:58]} 23. Bf4 {[%clk 0:00:57.5]} 23...
h5 {[%clk 0:01:55.4]} 24. e6 {[%clk 0:00:51.9]} 24... fxe6 {[%clk 0:01:51.8]}
25. Rxa6 {[%clk 0:00:49.9]} 25... Bxb4 {[%clk 0:01:40.2]} 26. Bxc7 {[%clk
0:00:33.4]} 26... Rxd4 {[%clk 0:01:37.8]} 27. cxb4 {[%clk 0:00:29.1]} 27... Bd5
{[%clk 0:01:33.9]} 28. g3 {[%clk 0:00:21.8]} 28... Qg4 {[%clk 0:01:28.2]} 29.
Ra8+ {[%clk 0:00:17.9]} 29... Bxa8 {[%clk 0:01:28]} 0-1

[Event "*** Titled Tuesday Blitz"]
[Site "Chess.com"]
[Date "2020.04.07"]
[Round "2"]
[White "KuzubovYuriy"]
[Black "Zq1"]
[Result "1-0"]
[WhiteElo "2814"]
[BlackElo "2538"]
[TimeControl "180+1"]
[EndTime "13:17:23 PDT"]
[Termination "KuzubovYuriy won by resignation"]

1. d4 {[%clk 0:03:00.9]} 1... d5 {[%clk 0:02:57]} 2. c4 {[%clk 0:02:59.8]} 2...
e6 {[%clk 0:02:56.9]} 3. Nc3 {[%clk 0:02:59.2]} 3... Be7 {[%clk 0:02:57]} 4.
cxd5 {[%clk 0:02:58.1]} 4... exd5 {[%clk 0:02:56.6]} 5. Bf4 {[%clk 0:02:58.8]}
5... Nf6 {[%clk 0:02:56.5]} 6. e3 {[%clk 0:02:59.1]} 6... O-O {[%clk 0:02:56]}
7. Bd3 {[%clk 0:02:57.9]} 7... c5 {[%clk 0:02:55.6]} 8. dxc5 {[%clk 0:02:55.9]}
8... Bxc5 {[%clk 0:02:54.3]} 9. Nge2 {[%clk 0:02:35.7]} 9... Nc6 {[%clk
0:02:53.7]} 10. O-O {[%clk 0:02:32.3]} 10... d4 {[%clk 0:02:52]} 11. Na4 {[%clk
0:02:30.4]} 11... Bd6 {[%clk 0:02:51.5]} 12. Bxd6 {[%clk 0:02:29.2]} 12... Qxd6
{[%clk 0:02:50.9]} 13. exd4 {[%clk 0:02:27.8]} 13... Bg4 {[%clk 0:02:44.7]} 14.
Nac3 {[%clk 0:02:23.4]} 14... Nxd4 {[%clk 0:02:36.8]} 15. Bxh7+ {[%clk
0:02:21.7]} 15... Kxh7 {[%clk 0:02:29.4]} 16. Qxd4 {[%clk 0:02:22.6]} 16... Qxd4
{[%clk 0:02:26.1]} 17. Nxd4 {[%clk 0:02:23.5]} 17... Rfd8 {[%clk 0:02:24.7]} 18.
Nb3 {[%clk 0:02:19.4]} 18... Nd5 {[%clk 0:02:15.1]} 19. f3 {[%clk 0:02:13.5]}
19... Nxc3 {[%clk 0:02:05.2]} 20. fxg4 {[%clk 0:01:57.8]} 20... Ne2+ {[%clk
0:02:04.8]} 21. Kh1 {[%clk 0:01:56.6]} 21... f6 {[%clk 0:02:01.7]} 22. Rae1
{[%clk 0:01:55.1]} 22... Nd4 {[%clk 0:01:53.6]} 23. Nxd4 {[%clk 0:01:40.5]}
23... Rxd4 {[%clk 0:01:52.3]} 24. Re7 {[%clk 0:01:40.2]} 24... b6 {[%clk
0:01:39.5]} 25. h3 {[%clk 0:01:36.2]} 25... Rd2 {[%clk 0:01:38.2]} 26. Rxf6
{[%clk 0:01:34.8]} 26... Rxb2 {[%clk 0:00:58.9]} 27. Rff7 {[%clk 0:01:34.5]}
27... Rxa2 {[%clk 0:00:58.1]} 28. Rxg7+ {[%clk 0:01:34.2]} 28... Kh8 {[%clk
0:00:57.4]} 29. h4 {[%clk 0:01:29]} 29... a5 {[%clk 0:00:37.5]} 30. h5 {[%clk
0:01:28.2]} 30... Re2 {[%clk 0:00:37.3]} 31. Rh7+ {[%clk 0:01:24.6]} 31... Kg8
{[%clk 0:00:36.6]} 32. Reg7+ {[%clk 0:01:24.8]} 32... Kf8 {[%clk 0:00:36]} 33.
h6 {[%clk 0:01:24.9]} 1-0

[Event "*** Titled Tuesday Blitz"]
[Site "Chess.com"]
[Date "2020.04.07"]
[Round "2"]
[White "picturesquecheck"]
[Black "Malev212"]
[Result "0-1"]
[WhiteElo "2141"]
[BlackElo "2637"]
[TimeControl "180+1"]
[EndTime "13:17:27 PDT"]
[Termination "Malev212 won by resignation"]

1. e4 {[%clk 0:03:00.9]} 1... e5 {[%clk 0:02:57.2]} 2. Nf3 {[%clk 0:03:00.9]}
2... Nc6 {[%clk 0:02:56.8]} 3. Bc4 {[%clk 0:03:00.6]} 3... Nf6 {[%clk
0:02:55.4]} 4. d3 {[%clk 0:03:00.3]} 4... h6 {[%clk 0:02:54.5]} 5. O-O {[%clk
0:02:59.6]} 5... d6 {[%clk 0:02:54.3]} 6. c3 {[%clk 0:02:58.5]} 6... g6 {[%clk
0:02:51.3]} 7. Re1 {[%clk 0:02:56.5]} 7... Bg7 {[%clk 0:02:50.1]} 8. h3 {[%clk
0:02:56.8]} 8... O-O {[%clk 0:02:48.8]} 9. d4 {[%clk 0:02:56.9]} 9... Re8 {[%clk
0:02:46.3]} 10. Nbd2 {[%clk 0:02:55.1]} 10... exd4 {[%clk 0:02:44.2]} 11. cxd4
{[%clk 0:02:55.1]} 11... d5 {[%clk 0:02:44]} 12. exd5 {[%clk 0:02:50.8]} 12...
Rxe1+ {[%clk 0:02:42.9]} 13. Qxe1 {[%clk 0:02:50.2]} 13... Nb4 {[%clk
0:02:40.6]} 14. Qd1 {[%clk 0:02:42.7]} 14... Bf5 {[%clk 0:02:28.2]} 15. Bb3
{[%clk 0:02:30.6]} 15... Nbxd5 {[%clk 0:02:22.3]} 16. Nf1 {[%clk 0:02:29]} 16...
c6 {[%clk 0:02:18]} 17. Ng3 {[%clk 0:02:27.8]} 17... Be6 {[%clk 0:02:17.2]} 18.
Ne5 {[%clk 0:02:25.8]} 18... Nc7 {[%clk 0:02:12.7]} 19. Be3 {[%clk 0:02:24.2]}
19... Nfd5 {[%clk 0:01:58.5]} 20. Bd2 {[%clk 0:02:01.4]} 20... Nb5 {[%clk
0:01:56.6]} 21. Ne2 {[%clk 0:01:56.5]} 21... c5 {[%clk 0:01:50.8]} 22. Nf3
{[%clk 0:01:31.2]} 22... Nxd4 {[%clk 0:01:47.5]} 23. Nexd4 {[%clk 0:01:30]}
23... cxd4 {[%clk 0:01:47.2]} 24. Rc1 {[%clk 0:01:25.8]} 24... d3 {[%clk
0:01:37.4]} 25. Ne1 {[%clk 0:00:59]} 25... Bxb2 {[%clk 0:01:29.7]} 26. Rb1
{[%clk 0:00:58.3]} 26... Bg7 {[%clk 0:01:28.7]} 27. Nxd3 {[%clk 0:00:55.9]}
27... Bf5 {[%clk 0:01:26.4]} 28. Nb4 {[%clk 0:00:52.5]} 28... Nxb4 {[%clk
0:01:21.1]} 29. Bxb4 {[%clk 0:00:53.4]} 29... Bxb1 {[%clk 0:01:20.3]} 30. Qxb1
{[%clk 0:00:53.5]} 30... Qf6 {[%clk 0:01:17.5]} 31. Bc5 {[%clk 0:00:47.4]} 31...
Qa1 {[%clk 0:01:14.2]} 32. Qxa1 {[%clk 0:00:46.1]} 32... Bxa1 {[%clk 0:01:14.7]}
0-1

[Event "*** Titled Tuesday Blitz"]
[Site "Chess.com"]
[Date "2020.04.07"]
[Round "2"]
[White "VladDobrov"]
[Black "Neimar24"]
[Result "1-0"]
[WhiteElo "2866"]
[BlackElo "2568"]
[TimeControl "180+1"]
[EndTime "13:17:29 PDT"]
[Termination "VladDobrov won by resignation"]

1. d4 {[%clk 0:03:00.9]} 1... Nf6 {[%clk 0:02:58.1]} 2. c4 {[%clk 0:03:00.1]}
2... g6 {[%clk 0:02:47.9]} 3. Nc3 {[%clk 0:02:59.3]} 3... d5 {[%clk 0:02:47.9]}
4. cxd5 {[%clk 0:02:52.5]} 4... Nxd5 {[%clk 0:02:47.6]} 5. e4 {[%clk 0:02:51.1]}
5... Nxc3 {[%clk 0:02:47.4]} 6. bxc3 {[%clk 0:02:52]} 6... Bg7 {[%clk
0:02:47.8]} 7. Nf3 {[%clk 0:02:49.8]} 7... c5 {[%clk 0:02:47.3]} 8. Rb1 {[%clk
0:02:49]} 8... O-O {[%clk 0:02:42.2]} 9. Be2 {[%clk 0:02:48.1]} 9... b6 {[%clk
0:02:40.4]} 10. O-O {[%clk 0:02:47.6]} 10... cxd4 {[%clk 0:02:38.8]} 11. cxd4
{[%clk 0:02:47.1]} 11... Ba6 {[%clk 0:02:38.5]} 12. Bxa6 {[%clk 0:02:41.7]}
12... Nxa6 {[%clk 0:02:38.7]} 13. Qa4 {[%clk 0:02:30.9]} 13... Nc7 {[%clk
0:02:37.2]} 14. Bf4 {[%clk 0:02:21.7]} 14... Ne6 {[%clk 0:02:35.6]} 15. Be3
{[%clk 0:02:21.8]} 15... Qe8 {[%clk 0:02:32.5]} 16. Qa3 {[%clk 0:02:15.2]} 16...
Qd7 {[%clk 0:02:28.7]} 17. d5 {[%clk 0:02:14.5]} 17... Nd8 {[%clk 0:02:24.3]}
18. Bxb6 {[%clk 0:01:59.4]} 18... Nb7 {[%clk 0:02:22.4]} 19. Bd4 {[%clk
0:01:57.8]} 19... Nd6 {[%clk 0:02:19.8]} 20. Bxg7 {[%clk 0:01:57]} 20... Kxg7
{[%clk 0:02:19.7]} 21. Ne5 {[%clk 0:01:57.4]} 21... Qc7 {[%clk 0:02:16.6]} 22.
Rfc1 {[%clk 0:01:56.5]} 22... Qd8 {[%clk 0:02:15.1]} 23. Nc6 {[%clk 0:01:56.8]}
23... Qd7 {[%clk 0:02:12]} 24. Ne5 {[%clk 0:01:30.6]} 24... Qd8 {[%clk
0:02:11.7]} 25. Qe3 {[%clk 0:01:19.9]} 25... f5 {[%clk 0:02:02.2]} 26. Nc6
{[%clk 0:01:19.3]} 26... Qd7 {[%clk 0:01:58.3]} 27. e5 {[%clk 0:01:19.3]} 27...
Ne4 {[%clk 0:01:58.2]} 28. f3 {[%clk 0:01:14.6]} 28... Qxd5 {[%clk 0:01:52.6]}
29. fxe4 {[%clk 0:01:14.3]} 29... fxe4 {[%clk 0:01:46.1]} 30. Nxe7 {[%clk
0:01:07.9]} 30... Qxe5 {[%clk 0:01:45.6]} 31. Nc6 {[%clk 0:01:05.2]} 31... Qf5
{[%clk 0:01:43.4]} 32. Rf1 {[%clk 0:01:03.6]} 32... Qe6 {[%clk 0:01:13.4]} 33.
Rb7+ {[%clk 0:00:56]} 33... Kh8 {[%clk 0:01:11.8]} 34. Qc3+ {[%clk 0:00:54.8]}
1-0

[Event "*** Titled Tuesday Blitz"]
[Site "Chess.com"]
[Date "2020.04.07"]
[Round "2"]
[White "theprosecution1"]
[Black "Sawyer2908"]
[Result "1-0"]
[WhiteElo "2804"]
[BlackElo "2530"]
[TimeControl "180+1"]
[EndTime "13:17:30 PDT"]
[Termination "theprosecution1 won by resignation"]

1. e4 {[%clk 0:03:00.9]} 1... c6 {[%clk 0:02:59.2]} 2. Nc3 {[%clk 0:03:00.2]}
2... d5 {[%clk 0:02:58.4]} 3. Nf3 {[%clk 0:03:01.1]} 3... dxe4 {[%clk
0:02:57.3]} 4. Nxe4 {[%clk 0:03:02]} 4... Bg4 {[%clk 0:02:57.2]} 5. h3 {[%clk
0:03:00.2]} 5... Bxf3 {[%clk 0:02:56.8]} 6. Qxf3 {[%clk 0:03:01.1]} 6... e6
{[%clk 0:02:56]} 7. c3 {[%clk 0:02:57.6]} 7... Nd7 {[%clk 0:02:48.7]} 8. d4
{[%clk 0:02:57.8]} 8... Ngf6 {[%clk 0:02:48.3]} 9. Bd3 {[%clk 0:02:57.8]} 9...
Be7 {[%clk 0:02:46]} 10. O-O {[%clk 0:02:56.4]} 10... O-O {[%clk 0:02:44.3]} 11.
Re1 {[%clk 0:02:54.9]} 11... Nxe4 {[%clk 0:02:31]} 12. Qxe4 {[%clk 0:02:55.8]}
12... Nf6 {[%clk 0:02:28]} 13. Qh4 {[%clk 0:02:55.5]} 13... g6 {[%clk
0:02:19.3]} 14. Bh6 {[%clk 0:02:52.4]} 14... Re8 {[%clk 0:02:17.2]} 15. Rad1
{[%clk 0:02:47.8]} 15... Nh5 {[%clk 0:02:07.2]} 16. Qg4 {[%clk 0:02:45.6]} 16...
Nf6 {[%clk 0:02:04.4]} 17. Qf3 {[%clk 0:02:45.8]} 17... Qd5 {[%clk 0:01:51.7]}
18. Qe2 {[%clk 0:02:39.3]} 18... Bf8 {[%clk 0:01:44.2]} 19. Bc4 {[%clk
0:02:30.9]} 19... Qd7 {[%clk 0:01:41.3]} 20. Bg5 {[%clk 0:02:28]} 20... Bg7
{[%clk 0:01:39.7]} 21. Qf3 {[%clk 0:02:24.6]} 21... Nd5 {[%clk 0:01:36.2]} 22.
h4 {[%clk 0:02:25.1]} 22... h5 {[%clk 0:01:34]} 23. g4 {[%clk 0:02:14.4]} 23...
hxg4 {[%clk 0:01:24.5]} 24. Qxg4 {[%clk 0:02:15.3]} 24... Nf6 {[%clk 0:01:00.9]}
25. Qf3 {[%clk 0:02:14.3]} 25... Nh5 {[%clk 0:00:53.3]} 26. Kg2 {[%clk
0:02:08.8]} 26... Qc7 {[%clk 0:00:39.9]} 27. Re4 {[%clk 0:02:07.7]} 27... e5
{[%clk 0:00:36.7]} 28. dxe5 {[%clk 0:02:04.7]} 28... Rxe5 {[%clk 0:00:36]} 29.
Rxe5 {[%clk 0:02:04.2]} 29... Bxe5 {[%clk 0:00:35.8]} 30. Qg4 {[%clk 0:01:57.7]}
30... Rf8 {[%clk 0:00:17.5]} 31. Rd7 {[%clk 0:01:51.5]} 31... Qc8 {[%clk
0:00:16.1]} 32. Be7 {[%clk 0:01:49]} 32... Kh7 {[%clk 0:00:05.6]} 33. Bxf8
{[%clk 0:01:46.3]} 1-0

[Event "*** Titled Tuesday Blitz"]
[Site "Chess.com"]
[Date "2020.04.07"]
[Round "2"]
[White "zmeeed67"]
[Black "amintabatabaei"]
[Result "0-1"]
[WhiteElo "2363"]
[BlackElo "2804"]
[TimeControl "180+1"]
[EndTime "13:17:30 PDT"]
[Termination "amintabatabaei won on time"]

1. d4 {[%clk 0:03:00.9]} 1... Nf6 {[%clk 0:02:54]} 2. c4 {[%clk 0:03:01.3]} 2...
g6 {[%clk 0:02:48.1]} 3. Nc3 {[%clk 0:03:01.2]} 3... Bg7 {[%clk 0:02:44.5]} 4.
Nf3 {[%clk 0:03:01.5]} 4... O-O {[%clk 0:02:44.2]} 5. Bg5 {[%clk 0:03:01.5]}
5... d6 {[%clk 0:02:42.6]} 6. e3 {[%clk 0:03:01.6]} 6... c5 {[%clk 0:02:42.2]}
7. Be2 {[%clk 0:03:01.4]} 7... cxd4 {[%clk 0:02:41]} 8. exd4 {[%clk 0:03:02.3]}
8... b6 {[%clk 0:02:40]} 9. O-O {[%clk 0:03:00.3]} 9... Bb7 {[%clk 0:02:40.4]}
10. d5 {[%clk 0:03:00.5]} 10... Nbd7 {[%clk 0:02:40.1]} 11. Rc1 {[%clk
0:02:56.2]} 11... Rc8 {[%clk 0:02:40.3]} 12. h3 {[%clk 0:02:54.5]} 12... h6
{[%clk 0:02:40.6]} 13. Bh4 {[%clk 0:02:38.9]} 13... Nc5 {[%clk 0:02:40.8]} 14.
Re1 {[%clk 0:02:29.5]} 14... Re8 {[%clk 0:02:40.3]} 15. Nd4 {[%clk 0:02:14.8]}
15... Qd7 {[%clk 0:02:38]} 16. Bf3 {[%clk 0:02:09.1]} 16... a5 {[%clk
0:02:36.1]} 17. Nc6 {[%clk 0:01:52.4]} 17... e5 {[%clk 0:02:33.1]} 18. dxe6
{[%clk 0:01:36.1]} 18... fxe6 {[%clk 0:02:26.9]} 19. Nd4 {[%clk 0:01:28.7]}
19... Bxf3 {[%clk 0:02:25.5]} 20. Qxf3 {[%clk 0:01:18.6]} 20... Rf8 {[%clk
0:02:26]} 21. Qe3 {[%clk 0:00:55.2]} 21... Rce8 {[%clk 0:02:25.8]} 22. Rcd1
{[%clk 0:00:53.8]} 22... Nh5 {[%clk 0:02:25.7]} 23. Ndb5 {[%clk 0:00:40.1]}
23... d5 {[%clk 0:02:26.2]} 24. g4 {[%clk 0:00:18.4]} 24... Nf4 {[%clk
0:02:24.3]} 25. Bg3 {[%clk 0:00:18.4]} 25... Nxh3+ {[%clk 0:02:23.3]} 26. Kg2
{[%clk 0:00:16.8]} 26... Ng5 {[%clk 0:02:22.7]} 27. Nc7 {[%clk 0:00:14.9]} 27...
Rf3 {[%clk 0:02:19.1]} 28. Qc1 {[%clk 0:00:09.4]} 28... Rxg3+ {[%clk 0:02:18.9]}
29. fxg3 {[%clk 0:00:08.7]} 29... Qxc7 {[%clk 0:02:19.8]} 30. cxd5 {[%clk
0:00:09.3]} 30... Rf8 {[%clk 0:02:17]} 31. Qc2 {[%clk 0:00:06.9]} 31... exd5
{[%clk 0:02:14.1]} 32. Nxd5 {[%clk 0:00:06.5]} 32... Qc6 {[%clk 0:02:12.8]} 33.
Kh2 {[%clk 0:00:01.5]} 33... Nf3+ {[%clk 0:02:12.9]} 34. Kh3 {[%clk 0:00:02]}
34... Kh7 {[%clk 0:02:11]} 35. Ne7 {[%clk 0:00:01.5]} 35... Ng5+ {[%clk
0:02:10.7]} 36. Kh2 {[%clk 0:00:01.2]} 36... Qf6 {[%clk 0:02:10.5]} 37. Rf1
{[%clk 0:00:01.1]} 37... Qxe7 {[%clk 0:02:10.4]} 38. Rxf8 {[%clk 0:00:01.1]}
38... Qxf8 {[%clk 0:02:11.3]} 0-1

[Event "*** Titled Tuesday Blitz"]
[Site "Chess.com"]
[Date "2020.04.07"]
[Round "2"]
[White "StarkAst"]
[Black "Azerichess"]
[Result "0-1"]
[WhiteElo "2604"]
[BlackElo "3003"]
[TimeControl "180+1"]
[EndTime "13:17:34 PDT"]
[Termination "Azerichess won by resignation"]

1. e4 {[%clk 0:03:00.8]} 1... c6 {[%clk 0:02:58.8]} 2. d4 {[%clk 0:03:00.8]}
2... d5 {[%clk 0:02:59.2]} 3. e5 {[%clk 0:03:00.4]} 3... Bf5 {[%clk 0:02:58.2]}
4. Nf3 {[%clk 0:03:00.6]} 4... e6 {[%clk 0:02:58.1]} 5. Be2 {[%clk 0:03:00.8]}
5... Ne7 {[%clk 0:02:58.6]} 6. O-O {[%clk 0:03:00.1]} 6... c5 {[%clk 0:02:58.3]}
7. Be3 {[%clk 0:03:00.2]} 7... cxd4 {[%clk 0:02:53.3]} 8. Nxd4 {[%clk
0:02:59.9]} 8... Nbc6 {[%clk 0:02:53.8]} 9. f4 {[%clk 0:02:43.3]} 9... Nxd4
{[%clk 0:02:50.6]} 10. Qxd4 {[%clk 0:02:37.7]} 10... Nc6 {[%clk 0:02:46.9]} 11.
Bb5 {[%clk 0:02:37.3]} 11... Be7 {[%clk 0:02:44.5]} 12. Nd2 {[%clk 0:02:28.3]}
12... O-O {[%clk 0:02:41]} 13. Bxc6 {[%clk 0:02:28.3]} 13... bxc6 {[%clk
0:02:40.3]} 14. Nb3 {[%clk 0:02:27.5]} 14... a5 {[%clk 0:02:37.1]} 15. c3 {[%clk
0:02:21.5]} 15... Qb8 {[%clk 0:02:34.5]} 16. Rf2 {[%clk 0:02:20.7]} 16... a4
{[%clk 0:02:27]} 17. Nc5 {[%clk 0:02:19.6]} 17... Qb5 {[%clk 0:02:26.6]} 18. Re1
{[%clk 0:02:08.9]} 18... Ra5 {[%clk 0:02:17.3]} 19. b4 {[%clk 0:01:08.7]} 19...
axb3 {[%clk 0:02:16.8]} 20. Nxb3 {[%clk 0:01:08.7]} 20... c5 {[%clk 0:02:16.6]}
21. Qd2 {[%clk 0:01:07.6]} 21... Ra4 {[%clk 0:02:15.6]} 22. h3 {[%clk
0:01:05.9]} 22... h5 {[%clk 0:02:11.5]} 23. Qe2 {[%clk 0:00:56.7]} 23... Qxe2
{[%clk 0:02:11.2]} 24. Rexe2 {[%clk 0:00:56.2]} 24... Rc8 {[%clk 0:02:10.9]} 25.
Rb2 {[%clk 0:00:55.1]} 25... h4 {[%clk 0:02:06.4]} 26. Nc1 {[%clk 0:00:54.8]}
26... d4 {[%clk 0:02:01.2]} 27. Bd2 {[%clk 0:00:51]} 27... c4 {[%clk 0:02:01]}
28. cxd4 {[%clk 0:00:50.6]} 28... c3 {[%clk 0:02:00]} 29. Bxc3 {[%clk
0:00:47.9]} 29... Rxc3 {[%clk 0:01:59.5]} 30. Nb3 {[%clk 0:00:46.8]} 30... Be4
{[%clk 0:01:52.7]} 31. Rfd2 {[%clk 0:00:40]} 31... Bd5 {[%clk 0:01:51.8]} 32.
Kf2 {[%clk 0:00:39.8]} 32... g5 {[%clk 0:01:49.7]} 33. fxg5 {[%clk 0:00:34.5]}
33... Bxg5 {[%clk 0:01:49.5]} 34. Rdc2 {[%clk 0:00:35.1]} 34... Be3+ {[%clk
0:01:46.4]} 35. Ke2 {[%clk 0:00:35]} 35... Rxc2+ {[%clk 0:01:45.5]} 36. Rxc2
{[%clk 0:00:35.9]} 36... Bxd4 {[%clk 0:01:45.8]} 0-1

[Event "*** Titled Tuesday Blitz"]
[Site "Chess.com"]
[Date "2020.04.07"]
[Round "2"]
[White "kleinebeer98"]
[Black "sorrm8thatscheckm8"]
[Result "1-0"]
[WhiteElo "2716"]
[BlackElo "2418"]
[TimeControl "180+1"]
[EndTime "13:17:34 PDT"]
[Termination "kleinebeer98 won by resignation"]

1. e4 {[%clk 0:03:00.9]} 1... c5 {[%clk 0:03:00.1]} 2. Nf3 {[%clk 0:03:00.6]}
2... Nc6 {[%clk 0:03:00.6]} 3. Nc3 {[%clk 0:03:00]} 3... g6 {[%clk 0:03:00.5]}
4. d4 {[%clk 0:02:59.8]} 4... cxd4 {[%clk 0:03:00.1]} 5. Nxd4 {[%clk 0:03:00.7]}
5... Bg7 {[%clk 0:03:01]} 6. Nf3 {[%clk 0:03:01.4]} 6... d6 {[%clk 0:02:59.9]}
7. h3 {[%clk 0:03:01.8]} 7... Nf6 {[%clk 0:03:00.5]} 8. Bc4 {[%clk 0:03:02.3]}
8... O-O {[%clk 0:03:00.2]} 9. O-O {[%clk 0:03:02.5]} 9... e6 {[%clk 0:03:00.4]}
10. Bg5 {[%clk 0:02:58.3]} 10... a6 {[%clk 0:02:58.7]} 11. Qe2 {[%clk
0:02:55.9]} 11... h6 {[%clk 0:02:58]} 12. Bh4 {[%clk 0:02:55.1]} 12... Qe7
{[%clk 0:02:54.6]} 13. Rad1 {[%clk 0:02:51]} 13... b5 {[%clk 0:02:53.9]} 14. Bb3
{[%clk 0:02:42.3]} 14... Bb7 {[%clk 0:02:52]} 15. Qe3 {[%clk 0:02:31.4]} 15...
Ne5 {[%clk 0:02:35.8]} 16. Nd4 {[%clk 0:02:19.5]} 16... Nc4 {[%clk 0:02:15.4]}
17. Bxc4 {[%clk 0:02:18.1]} 17... bxc4 {[%clk 0:02:16.3]} 18. f4 {[%clk
0:02:18.4]} 18... e5 {[%clk 0:02:10.9]} 19. fxe5 {[%clk 0:02:00.5]} 19... dxe5
{[%clk 0:02:11.8]} 20. Nde2 {[%clk 0:01:40.7]} 20... g5 {[%clk 0:02:11.8]} 21.
Bf2 {[%clk 0:01:28.8]} 21... Nh5 {[%clk 0:02:11.3]} 22. Nd5 {[%clk 0:01:24.5]}
22... Bxd5 {[%clk 0:02:10.1]} 23. Rxd5 {[%clk 0:01:25.4]} 23... Nf4 {[%clk
0:02:10]} 24. Nxf4 {[%clk 0:01:25.2]} 24... exf4 {[%clk 0:02:07.9]} 25. Qe2
{[%clk 0:01:25.6]} 25... Rfe8 {[%clk 0:02:04.8]} 26. Re1 {[%clk 0:01:21.4]}
26... Bxb2 {[%clk 0:02:03.8]} 27. Qxc4 {[%clk 0:01:20]} 27... Rac8 {[%clk
0:02:01.4]} 28. Qxa6 {[%clk 0:01:18.6]} 28... Rxc2 {[%clk 0:01:55.9]} 29. Qxh6
{[%clk 0:01:17.9]} 29... Bg7 {[%clk 0:01:54.4]} 30. Rxg5 {[%clk 0:01:16.3]}
30... f6 {[%clk 0:01:50.3]} 31. Rg4 {[%clk 0:01:15.6]} 31... Kf8 {[%clk
0:01:42.6]} 32. Qxf4 {[%clk 0:01:13.4]} 32... Rxa2 {[%clk 0:01:33]} 33. e5
{[%clk 0:01:10.4]} 33... Ra6 {[%clk 0:01:22]} 34. exf6 {[%clk 0:00:52.6]} 34...
Qxf6 {[%clk 0:01:19.6]} 35. Bc5+ {[%clk 0:00:52.9]} 35... Kg8 {[%clk 0:01:17.9]}
36. Rxe8+ {[%clk 0:00:52.1]} 1-0